bitfinex/quotes_BTCUSD_20250620
["timestamp","ask_amount","ask_price","bid_price","bid_amount"]
[1750454586007,1.75742029,103550.0,103540.0,0.06677]
[1750454586882,1.55461991,103550.0,103540.0,0.06677]
[1750454587095,1.65249346,103550.0,103540.0,0.0656]
[1750454587312,1.66215044,103550.0,103540.0,0.0346]
[1750454587723,1.66887442,103550.0,103540.0,0.0346]
[1750454588605,1.69897442,103550.0,103540.0,0.0041]
[1750454588820,1.69897609,103550.0,103540.0,0.0041]
[1750454589033,1.56498594,103550.0,103540.0,0.0342]
[1750454589271,1.66859609,103550.0,103540.0,0.03537]
[1750454589484,1.66859609,103550.0,103540.0,0.06597]
[1750454590313,1.66187044,103550.0,103540.0,0.06597]
[1750454590545,1.66859526,103550.0,103540.0,0.06597]
[1750454590783,1.76386511,103550.0,103540.0,0.06597]
[1750454591171,1.76386511,103550.0,103540.0,0.03537]
[1750454591838,1.76386511,103550.0,103540.0,0.0342]
[1750454592059,1.79706511,103550.0,103540.0,0.0342]
[1750454592276,1.79706511,103550.0,103540.0,0.0041]
[1750454592483,1.82002313,103550.0,103540.0,0.0041]
[1750454592695,1.82007313,103550.0,103540.0,0.0041]
[1750454593538,1.83801573,103550.0,103540.0,0.0041]
[1750454594640,1.83804288,103550.0,103540.0,0.0041]
[1750454594854,2.29968802,103550.0,103540.0,0.0041]
[1750454595068,2.80633802,103550.0,103540.0,0.0041]
[1750454595745,2.80633802,103550.0,103540.0,0.0031]
[1750454595942,0.44436041,103530.0,103520.0,0.06487]
[1750454596154,1.71352054,103530.0,103520.0,0.06487]
[1750454596366,1.71351928,103530.0,103520.0,0.06487]
[1750454596980,1.71490412,103530.0,103520.0,0.06487]
[1750454597224,1.71490412,103530.0,103520.0,0.0637]
[1750454597439,1.73789702,103530.0,103520.0,0.0331]
[1750454597663,1.73789702,103530.0,103520.0,0.0351]
[1750454598059,1.73789702,103530.0,103520.0,0.0361]
[1750454598276,1.75587816,103530.0,103520.0,0.0361]
[1750454599139,0.21740001,103520.0,103510.0,0.0448716]
[1750454599347,0.21740001,103520.0,103510.0,0.0131016]
[1750454599348,1.26260997,103520.0,103510.0,0.0131016]
[1750454599560,1.28560287,103520.0,103510.0,0.0131016]
[1750454600212,1.19033302,103520.0,103510.0,0.0131016]
[1750454600422,1.19033302,103520.0,103510.0,0.0132424]
[1750454600669,1.19133302,103520.0,103510.0,0.0132424]
[1750454601974,0.4443996,103510.0,103500.0,0.03187]
[1750454602220,0.841362,103510.0,103500.0,0.06257]
[1750454602433,1.32674246,103510.0,103500.0,0.06257]
[1750454602650,0.8643549,103510.0,103500.0,0.06257]
[1750454602882,1.24113072,103510.0,103500.0,0.06257]
[1750454603291,1.24113072,103510.0,103500.0,0.06357]
[1750454604359,1.24113072,103510.0,103500.0,0.06557]
[1750454605016,1.70351828,103510.0,103500.0,0.06557]
[1750454605229,1.33640057,103510.0,103500.0,0.06557]
[1750454605447,0.87401301,103510.0,103500.0,0.06557]
[1750454605666,1.33639557,103510.0,103500.0,0.06557]
[1750454605874,1.79878313,103510.0,103500.0,0.06557]
[1750454606320,1.33639557,103510.0,103500.0,0.06557]
[1750454606981,1.79878313,103510.0,103500.0,0.06557]
[1750454607408,1.31340267,103510.0,103500.0,0.06557]
[1750454608252,1.77579023,103510.0,103500.0,0.06557]
[1750454608472,1.77578717,103510.0,103500.0,0.0644]
[1750454608685,1.83064657,103510.0,103500.0,0.0031]
[1750454609326,1.86204606,103510.0,103500.0,0.0031]
[1750454609544,1.86204606,103510.0,103500.0,0.0021]
[1750454609760,2.35029606,103510.0,103500.0,0.0021]
[1750454610006,2.38215861,103510.0,103500.0,0.0001]
[1750454610410,2.35329606,103510.0,103500.0,0.0001]
[1750454610899,2.35429606,103510.0,103500.0,0.0001]
[1750454611335,1.12769308,103490.0,103480.0,0.0307]
[1750454611553,1.28955684,103490.0,103480.0,0.0304]
[1750454611980,1.31249989,103490.0,103480.0,0.0304]
[1750454612403,0.44445842,103480.0,103470.0,0.03257]
[1750454612615,1.62339247,103480.0,103470.0,0.03257]
[1750454612832,1.16100491,103480.0,103470.0,0.03257]
[1750454613262,1.20076172,103480.0,103470.0,0.03257]
[1750454613468,1.66314928,103480.0,103470.0,0.03257]
[1750454613680,1.66329031,103480.0,103470.0,0.03457]
[1750454614534,1.66329031,103480.0,103470.0,0.06737]
[1750454616715,1.66239193,103480.0,103470.0,0.06737]
[1750454617370,1.67845182,103480.0,103470.0,0.06737]
[1750454617850,0.83760203,103480.0,103450.0,0.0622]
[1750454618073,0.90200946,103460.0,103450.0,0.06337]
[1750454618295,1.15784839,103460.0,103450.0,0.06337]
[1750454618952,1.18728333,103460.0,103450.0,0.06337]
[1750454619606,1.02672333,103460.0,103450.0,0.0622]
[1750454619830,1.03343312,103460.0,103450.0,0.06437]
[1750454620045,0.76621577,103460.0,103450.0,0.06437]
[1750454620260,1.22860333,103460.0,103450.0,0.06437]
[1750454620483,0.76621577,103460.0,103450.0,0.06537]
[1750454620711,1.22860333,103460.0,103450.0,0.06537]
[1750454620962,1.22860333,103460.0,103450.0,0.25870011]
[1750454620963,1.1333244,103460.0,103450.0,0.25870011]
[1750454621178,1.1333244,103460.0,103450.0,0.0750365]
[1750454621398,1.1236593,103460.0,103450.0,0.0750365]
[1750454621835,0.66127174,103460.0,103450.0,0.27803302]
[1750454622047,0.45939174,103460.0,103450.0,0.27803302]
[1750454622276,1.1251393,103460.0,103450.0,0.28769933]
[1750454622665,0.88849392,103460.0,103450.0,0.28769933]
[1750454623145,0.88849392,103460.0,103450.0,0.29736555]
[1750454623579,0.88849392,103460.0,103450.0,0.28769933]
[1750454623996,0.71451298,103460.0,103450.0,0.30703168]
[1750454624207,0.72417855,103460.0,103450.0,0.29736518]
[1750454624825,0.72417855,103460.0,103450.0,0.28769905]
[1750454624826,0.91748997,103460.0,103450.0,0.28769905]
[1750454625278,0.91748997,103460.0,103450.0,0.29736518]
[1750454626233,0.02943494,103460.0,103450.0,0.30703065]
[1750454626651,0.66574756,103470.0,103460.0,0.28537699]
[1750454626864,0.47205135,103470.0,103460.0,0.28537699]
[1750454627074,0.48825134,103480.0,103470.0,0.28535552]
[1750454627292,0.70119438,103480.0,103470.0,0.28535552]
[1750454627503,0.72975107,103480.0,103470.0,0.28535552]
[1750454627713,0.04475761,103480.0,103470.0,0.28535552]
[1750454629286,0.02869772,103480.0,103470.0,0.28635552]
[1750454629501,0.00014103,103480.0,103470.0,0.38463445]
[1750454631472,0.00014103,103480.0,103470.0,0.84702201]
[1750454631692,0.47845195,103510.0,103500.0,0.28709109]
[1750454631904,0.47845195,103510.0,103500.0,0.44819937]
[1750454632117,0.01606439,103510.0,103500.0,0.44819937]
[1750454632343,0.47845195,103510.0,103500.0,0.44819937]
[1750454632590,0.46238756,103510.0,103500.0,0.44819937]
[1750454633037,0.46238756,103510.0,103500.0,0.45019937]
[1750454633256,0.08123416,103530.0,103520.0,0.02897877]
[1750454633467,0.53396036,103540.0,103530.0,0.28702716]
[1750454633688,0.54361827,103540.0,103530.0,0.28702716]
[1750454633943,0.4916537,103540.0,103530.0,0.30634401]
[1750454634154,0.47852182,103540.0,103530.0,0.30634401]
[1750454634785,0.01613426,103540.0,103530.0,0.30634401]
[1750454634992,0.49783671,103540.0,103530.0,0.30634401]
[1750454635202,0.48170245,103540.0,103530.0,0.30634401]
[1750454635629,0.00965735,103540.0,103530.0,0.30634401]
[1750454635830,0.48204491,103540.0,103530.0,0.30634401]
[1750454636038,0.47304491,103540.0,103530.0,0.30634401]
[1750454636473,0.47704491,103540.0,103530.0,0.30634401]
[1750454636693,0.48670245,103540.0,103530.0,0.30634401]
[1750454636920,0.01465735,103540.0,103530.0,0.30634401]
[1750454637136,0.47704491,103540.0,103530.0,0.30634401]
[1750454637623,0.47704482,103540.0,103530.0,0.30634401]
[1750454637840,0.4666029,103540.0,103530.0,0.30634401]
[1750454638475,0.49174605,103540.0,103530.0,0.30634401]
[1750454638687,0.48208879,103540.0,103530.0,0.30634401]
[1750454640432,0.00421534,103540.0,103530.0,0.40162294]
[1750454643552,0.00421534,103540.0,103530.0,0.46162294]
[1750454645583,0.00421534,103540.0,103530.0,0.9240105]
[1750454646664,0.4626029,103540.0,103530.0,0.46162294]
[1750454646800,0.4626029,103540.0,103530.0,0.62274294]
[1750454646995,0.52279458,103540.0,103530.0,0.28538072]
[1750454647196,1.52068291,103540.0,103530.0,0.06]
[1750454647401,0.0193189,103520.0,103510.0,0.28843887]
[1750454647681,0.02897868,103520.0,103510.0,0.25593952]
[1750454647903,0.49136624,103520.0,103510.0,0.22219942]
[1750454648108,0.48170646,103520.0,103510.0,0.22333942]
[1750454648314,0.49136614,103520.0,103510.0,0.22333942]
[1750454648929,0.58761744,103520.0,103510.0,0.22333942]
[1750454649169,0.57464225,103540.0,103530.0,0.2136385]
[1750454649170,0.05819159,103540.0,103530.0,0.2136385]
[1750454649375,0.64580781,103540.0,103530.0,0.22329716]
[1750454649995,0.63614981,103540.0,103530.0,0.2136385]
[1750454650275,0.64580781,103540.0,103530.0,0.22329716]
[1750454650479,0.88398926,103540.0,103530.0,0.21363859]
[1750454650688,0.87433191,103540.0,103530.0,0.21249869]
[1750454651312,0.87433191,103540.0,103530.0,0.22215753]
[1750454651515,0.06784942,103540.0,103530.0,0.22329753]
[1750454651769,0.07084914,103540.0,103530.0,0.24261494]
[1750454651970,0.64880736,103540.0,103530.0,0.23295553]
[1750454652191,0.65846536,103540.0,103530.0,0.22329697]
[1750454652607,0.84197007,103540.0,103530.0,0.20397956]
[1750454652804,0.84197007,103540.0,103530.0,0.21363831]
[1750454653047,0.84197007,103540.0,103530.0,0.22329697]
[1750454653253,0.64880801,103540.0,103530.0,0.23295553]
[1750454653471,0.84197007,103540.0,103530.0,0.21363831]
[1750454653677,0.84197007,103540.0,103530.0,0.22329697]
[1750454653878,0.64880801,103540.0,103530.0,0.20397956]
[1750454654696,0.64880801,103540.0,103530.0,0.21363831]
[1750454655086,0.64880801,103540.0,103530.0,0.20397956]
[1750454655295,0.01931704,103530.0,103520.0,0.19319938]
[1750454655444,0.5876166,103530.0,103520.0,0.20399897]
[1750454655644,0.59727516,103530.0,103520.0,0.21365847]
[1750454655896,0.60693391,103530.0,103520.0,0.22331825]
[1750454656941,0.61659294,103530.0,103520.0,0.2243188]
[1750454657173,0.61659294,103530.0,103520.0,0.20385934]
[1750454657174,0.80977357,103530.0,103520.0,0.20385934]
[1750454657376,0.60693391,103530.0,103520.0,0.22317861]
[1750454657568,0.00965828,103530.0,103520.0,0.29597718]
[1750454658201,0.01931657,103530.0,103520.0,0.29597662]
[1750454658829,0.03887605,103540.0,103530.0,0.2221567]
[1750454659038,0.02921879,103540.0,103530.0,0.2852967]
[1750454659459,1.28153464,103550.0,103540.0,0.25507524]
[1750454659460,0.0426,103550.0,103540.0,0.25507524]
[1750454659663,0.05898524,103550.0,103540.0,0.28707524]
[1750454659874,0.04932891,103550.0,103540.0,0.28707524]
[1750454660083,0.0426,103550.0,103540.0,0.28707524]
[1750454660698,0.0427415,103550.0,103540.0,0.28707524]
[1750454661334,0.0447415,103550.0,103540.0,0.28707524]
[1750454661538,0.0021415,103550.0,103540.0,0.38235417]
[1750454661957,0.0071415,103550.0,103540.0,0.38235417]
[1750454663114,0.0071415,103550.0,103540.0,0.41135917]
[1750454663546,0.0051415,103550.0,103540.0,0.41135917]
[1750454663753,0.0001415,103550.0,103540.0,0.41235917]
[1750454664158,0.0011415,103550.0,103540.0,0.41135917]
[1750454664545,0.0011415,103550.0,103540.0,0.41235917]
[1750454669056,0.0011415,103550.0,103540.0,0.57535917]
[1750454677496,0.0011415,103550.0,103540.0,1.03724842]
[1750454677914,0.0011415,103550.0,103540.0,0.57535917]
[1750454679557,0.0011415,103550.0,103540.0,1.03724842]
[1750454679767,0.0011415,103550.0,103540.0,0.57535917]
[1750454680439,0.0011415,103550.0,103540.0,0.41235917]
[1750454680660,0.0011415,103550.0,103540.0,0.54563417]
[1750454680879,0.0011415,103550.0,103540.0,0.51363417]
[1750454681096,0.0011415,103550.0,103540.0,0.35135417]
[1750454681313,0.0011415,103550.0,103540.0,0.51363417]
[1750454681533,0.0011415,103550.0,103540.0,0.48179417]
[1750454682155,0.0011415,103550.0,103540.0,0.31955417]
[1750454682360,0.46303075,103550.0,103540.0,0.48179417]
[1750454682596,0.46303075,103550.0,103540.0,0.38643524]
[1750454686342,0.46303075,103550.0,103540.0,0.38529524]
[1750454686554,0.50478708,103550.0,103540.0,0.38529524]
[1750454686772,0.49513075,103550.0,103540.0,0.38529524]
[1750454687961,0.49513075,103550.0,103540.0,0.22313524]
[1750454688199,0.49513075,103550.0,103540.0,0.38505524]
[1750454688624,0.49513075,103550.0,103540.0,0.22313524]
[1750454688832,0.0332415,103550.0,103540.0,0.38501524]
[1750454689045,0.46303075,103550.0,103540.0,0.38501524]
[1750454690134,0.46303075,103550.0,103540.0,0.38614524]
[1750454690763,0.58080995,103550.0,103540.0,0.22313524]
[1750454691182,0.59046646,103550.0,103540.0,0.38485524]
[1750454691402,0.53598726,103550.0,103540.0,0.38485524]
[1750454691819,0.54564396,103550.0,103540.0,0.38485524]
[1750454692028,0.54564387,103550.0,103540.0,0.38485524]
[1750454692676,0.54564387,103550.0,103540.0,0.22313524]
[1750454692889,0.54564387,103550.0,103540.0,0.38485524]
[1750454693930,0.64091372,103550.0,103540.0,0.38485524]
[1750454694337,0.63125702,103550.0,103540.0,0.38485524]
[1750454695703,0.63125702,103550.0,103540.0,0.38457524]
[1750454697755,0.54564378,103550.0,103540.0,0.38457524]
[1750454697977,0.53598717,103550.0,103540.0,0.38457524]
[1750454699551,0.54564378,103550.0,103540.0,0.38457524]
[1750454700341,5.79714462,103550.0,103540.0,0.001]
[1750454700598,5.06931732,103530.0,103520.0,0.22217861]
[1750454700850,5.06931732,103530.0,103490.0,0.22237138]
[1750454700851,0.01932226,103500.0,103490.0,0.22237138]
[1750454701105,6.01648159,103500.0,103490.0,0.20301805]
[1750454701347,6.01648159,103500.0,103490.0,0.0001]
[1750454701630,5.23407287,103500.0,103490.0,0.0001]
[1750454701859,5.46993995,103500.0,103490.0,0.22234292]
[1750454702096,5.35045834,103500.0,103490.0,0.22234292]
[1750454702334,5.14755961,103500.0,103490.0,0.23200512]
[1750454702563,5.16688233,103500.0,103490.0,0.23200512]
[1750454702803,5.16688224,103500.0,103490.0,0.23200512]
[1750454703078,0.46188925,103500.0,103490.0,0.26623512]
[1750454703551,0.47155043,103500.0,103490.0,0.26623512]
[1750454703800,0.47155033,103500.0,103490.0,0.26623512]
[1750454704302,0.47355033,103500.0,103490.0,0.26623512]
[1750454704526,0.4832116,103500.0,103490.0,0.42851512]
[1750454704977,0.47355033,103500.0,103490.0,0.42851512]
[1750454705207,0.4832116,103500.0,103490.0,0.42851512]
[1750454705697,0.47355033,103500.0,103490.0,0.42867512]
[1750454705928,0.48321151,103500.0,103490.0,0.42867512]
[1750454707058,0.02132226,103500.0,103490.0,0.42867512]
[1750454707286,0.47355033,103500.0,103490.0,0.42867512]
[1750454707530,0.4832116,103500.0,103490.0,0.42867512]
[1750454708499,0.48321151,103500.0,103490.0,0.46077512]
[1750454708932,0.49287278,103500.0,103490.0,0.46077512]
[1750454709157,0.03098353,103500.0,103490.0,0.46077512]
[1750454709609,0.48321151,103500.0,103490.0,0.46077512]
[1750454710289,0.49287287,103500.0,103490.0,0.46077512]
[1750454710513,0.48321151,103500.0,103490.0,0.46077512]
[1750454711210,0.49287297,103500.0,103490.0,0.46077512]
[1750454711440,0.49287287,103500.0,103490.0,0.46077512]
[1750454711916,0.46388925,103500.0,103490.0,0.46077512]
[1750454712371,0.47355043,103500.0,103490.0,0.39567512]
[1750454712590,0.4832117,103500.0,103490.0,0.39567512]
[1750454713023,0.4832117,103500.0,103490.0,0.42805512]
[1750454713237,0.49287316,103500.0,103490.0,0.42805512]
[1750454713901,0.4832117,103500.0,103490.0,0.42805512]
[1750454714328,0.4832117,103500.0,103490.0,0.42805521]
[1750454714329,0.51219644,103500.0,103490.0,0.42805521]
[1750454714557,0.51219644,103500.0,103490.0,0.43771732]
[1750454714785,0.5025347,103500.0,103490.0,0.43771732]
[1750454715677,0.96442395,103500.0,103490.0,0.40501732]
[1750454715956,0.97408569,103500.0,103490.0,0.39412521]
[1750454716180,0.97408634,103500.0,103490.0,0.39412521]
[1750454716408,0.96442451,103500.0,103490.0,0.40378732]
[1750454717085,0.96442451,103500.0,103490.0,0.24166732]
[1750454717325,0.96442451,103500.0,103490.0,0.24289732]
[1750454717783,0.95476277,103500.0,103490.0,0.24289732]
[1750454718375,0.94510113,103500.0,103490.0,0.24289732]
[1750454718817,0.49287343,103500.0,103490.0,0.24289732]
[1750454719029,0.49287343,103500.0,103490.0,0.27529732]
[1750454719400,0.48321188,103500.0,103490.0,0.27529732]
[1750454719924,0.49287343,103500.0,103490.0,0.27529732]
[1750454720879,0.48321188,103500.0,103490.0,0.27529732]
[1750454721099,0.49287343,103500.0,103490.0,0.27529732]
[1750454721728,0.48321151,103500.0,103490.0,0.27529732]
[1750454721906,0.49287297,103500.0,103490.0,0.27529732]
[1750454722331,0.49287287,103500.0,103490.0,0.27529732]
[1750454725397,0.47355052,103500.0,103490.0,0.30779732]
[1750454725614,0.48321151,103500.0,103490.0,0.30779732]
[1750454725825,0.49287287,103500.0,103490.0,0.30779732]
[1750454728045,0.48321151,103500.0,103490.0,0.30779732]
[1750454728652,0.49287297,103500.0,103490.0,0.30779732]
[1750454728860,0.48321151,103500.0,103490.0,0.30779732]
[1750454729274,0.49287287,103500.0,103490.0,0.30779732]
[1750454729692,0.49662726,103500.0,103490.0,0.30779732]
[1750454729910,0.5159497,103500.0,103490.0,0.30779732]
[1750454730549,0.52271098,103500.0,103490.0,0.30779732]
[1750454730976,0.06082173,103500.0,103490.0,0.30779732]
[1750454731170,0.52271098,103500.0,103490.0,0.30779732]
[1750454731924,0.06082503,103500.0,103490.0,0.30779732]
[1750454732148,0.52271428,103500.0,103490.0,0.30779732]
[1750454733800,0.53237574,103500.0,103490.0,0.30779732]
[1750454734228,0.03185477,103500.0,103490.0,0.30779732]
[1750454734448,0.00876458,103500.0,103490.0,0.30779732]
[1750454734663,0.47065383,103500.0,103490.0,0.30779732]
[1750454735362,0.002,103500.0,103490.0,0.40307625]
[1750454736550,0.002,103500.0,103490.0,0.8649655]
[1750454736769,0.002,103500.0,103490.0,0.40307625]
[1750454739325,0.002,103500.0,103490.0,0.52307625]
[1750454740191,0.002,103500.0,103490.0,0.9849655]
[1750454745169,0.002,103500.0,103490.0,1.0139815]
[1750454746683,0.002,103500.0,103490.0,1.0639815]
[1750454747369,0.002,103500.0,103490.0,1.09245755]
[1750454748080,0.002,103500.0,103490.0,1.4999984]
[1750454748768,5.18129825,103540.0,103530.0,0.2221567]
[1750454749041,5.18143973,103540.0,103530.0,0.2221567]
[1750454749254,5.19109718,103540.0,103530.0,0.2221567]
[1750454749471,5.19109699,103540.0,103530.0,0.2221567]
[1750454749912,5.18143973,103540.0,103530.0,0.2221567]
[1750454750126,5.18343973,103540.0,103530.0,0.2221567]
[1750454751020,5.18443973,103540.0,103530.0,0.2221567]
[1750454753479,5.19409708,103540.0,103530.0,0.2221567]
[1750454754204,5.18443973,103540.0,103530.0,0.2221567]
[1750454755098,5.19409708,103540.0,103530.0,0.2221567]
[1750454755315,5.18443973,103540.0,103530.0,0.2221567]
[1750454755541,5.19409718,103540.0,103530.0,0.2221567]
[1750454756020,5.18443973,103540.0,103530.0,0.2221567]
[1750454756284,5.19409708,103540.0,103530.0,0.2221567]
[1750454758061,5.19409699,103540.0,103530.0,0.2221567]
[1750454759415,5.18443973,103540.0,103530.0,0.2221567]
[1750454759636,5.19409708,103540.0,103530.0,0.2221567]
[1750454759853,5.18443973,103540.0,103530.0,0.2221567]
[1750454760074,5.19409708,103540.0,103530.0,0.2221567]
[1750454760730,5.20375462,103540.0,103530.0,0.2221567]
[1750454760952,5.19409699,103540.0,103530.0,0.2221567]
[1750454762883,5.18443973,103540.0,103530.0,0.2221567]
[1750454764896,4.97838281,103540.0,103530.0,0.2221567]
[1750454765114,4.97838373,103540.0,103530.0,0.2221567]
[1750454765349,0.46503073,103540.0,103530.0,0.2221567]
[1750454765599,0.46503073,103540.0,103530.0,0.2547567]
[1750454766983,0.92753684,103540.0,103530.0,0.2547567]
[1750454768976,0.92753684,103540.0,103530.0,0.2559467]
[1750454770096,0.46533916,103540.0,103530.0,0.2559467]
[1750454770307,0.92753684,103540.0,103530.0,0.2559467]
[1750454776622,0.00314148,103540.0,103530.0,0.2559467]
[1750454776828,0.92753684,103540.0,103530.0,0.2559467]
[1750454780253,0.92753684,103540.0,103530.0,0.2886467]
[1750454791851,0.00314148,103540.0,103530.0,0.2886467]
[1750454792062,0.92753684,103540.0,103530.0,0.2886467]
[1750454795608,0.9371941,103540.0,103530.0,0.2886467]
[1750454797639,0.92753684,103540.0,103530.0,0.2886467]
[1750454797876,0.9371941,103540.0,103530.0,0.2886467]
[1750454798297,0.92753684,103540.0,103530.0,0.2886467]
[1750454800156,0.68124522,103540.0,103530.0,0.2886467]
[1750454804568,5.001603,103550.0,103540.0,0.22213524]
[1750454804789,0.46224768,103550.0,103540.0,0.44533524]
[1750454805684,0.46424768,103550.0,103540.0,0.44533524]
[1750454806109,0.46724768,103550.0,103540.0,0.44533524]
[1750454807196,0.46724768,103550.0,103540.0,0.54061417]
[1750454807847,0.00505,103550.0,103540.0,0.54061417]
[1750454808058,0.46724768,103550.0,103540.0,0.54061417]
[1750454808726,0.00505,103550.0,103540.0,1.46500953]
[1750454810054,0.00205,103550.0,103540.0,1.46500953]
[1750454810737,5e-05,103550.0,103540.0,1.47955038]
[1750454811164,0.00205,103550.0,103540.0,1.47955038]
[1750454811620,5e-05,103550.0,103540.0,1.47955038]
[1750454811831,5e-05,103550.0,103540.0,1.48055038]
[1750454812256,5e-05,103550.0,103540.0,1.32087038]
[1750454812482,5e-05,103550.0,103540.0,1.52251038]
[1750454814470,0.01268646,103570.0,103560.0,0.28389233]
[1750454814471,0.01225846,103570.0,103560.0,0.28389233]
[1750454814689,0.46219768,103580.0,103570.0,0.2850909]
[1750454814893,0.46233908,103580.0,103570.0,0.2850909]
[1750454815818,0.46533908,103580.0,103570.0,0.2850909]
[1750454816040,0.46533908,103580.0,103570.0,0.4050909]
[1750454818013,0.46733908,103580.0,103570.0,0.4050909]
[1750454818262,0.48993714,103580.0,103570.0,0.4050909]
[1750454818485,0.48028361,103580.0,103570.0,0.4050909]
[1750454826713,0.01808593,103580.0,103570.0,0.4050909]
[1750454826925,0.48028361,103580.0,103570.0,0.4050909]
[1750454831076,0.01808593,103580.0,103570.0,0.96256751]
[1750454831814,0.01808593,103580.0,103570.0,0.50036983]
[1750454832030,0.01808593,103580.0,103570.0,0.96256751]
[1750454832505,0.01508593,103580.0,103570.0,0.96256751]
[1750454832722,0.01508593,103580.0,103570.0,0.96356751]
[1750454832947,0.01308593,103580.0,103570.0,1.12292751]
[1750454833183,0.01308593,103580.0,103570.0,1.12192751]
[1750454833408,0.01308593,103580.0,103570.0,1.12292751]
[1750454833874,0.01308593,103580.0,103570.0,1.12192751]
[1750454834319,0.0001414,103580.0,103570.0,1.12192751]
[1750454836580,0.0001414,103580.0,103570.0,1.12592751]
[1750454838489,0.0001414,103580.0,103570.0,1.13888358]
[1750454838928,0.0001414,103580.0,103570.0,1.12592751]
[1750454839427,0.0001414,103580.0,103570.0,0.66372983]
[1750454839693,0.0001414,103580.0,103570.0,1.12592751]
[1750454841296,0.0001414,103580.0,103570.0,1.15492151]
[1750454844446,0.0001414,103580.0,103570.0,0.69272383]
[1750454844688,0.0001414,103580.0,103570.0,1.15492151]
[1750454847044,0.0001414,103580.0,103570.0,0.69272383]
[1750454847295,0.0001414,103580.0,103570.0,1.15492151]
[1750454852090,0.25812725,103600.0,103590.0,0.222028]
[1750454852331,0.25812725,103600.0,103590.0,0.47780693]
[1750454853078,0.27013515,103600.0,103590.0,0.47780693]
[1750454853556,0.27013515,103600.0,103590.0,0.47880693]
[1750454854261,0.27013515,103600.0,103590.0,0.50950693]
[1750454858002,0.27013515,103600.0,103590.0,0.50842693]
[1750454860756,0.0120079,103600.0,103590.0,0.50842693]
[1750454860998,0.47420558,103600.0,103590.0,0.50842693]
[1750454861251,0.46219768,103600.0,103590.0,0.50842693]
[1750454863501,0.08210156,103610.0,103600.0,0.22200658]
[1750454863502,5.13210156,103610.0,103600.0,0.22200658]
[1750454863717,5.12245073,103610.0,103600.0,0.22200658]
[1750454863934,5.58464841,103610.0,103600.0,0.22200658]
[1750454864832,5.58464841,103610.0,103600.0,0.22300658]
[1750454865056,5.59429924,103610.0,103600.0,0.22400658]
[1750454865275,5.60629251,103610.0,103600.0,0.22400658]
[1750454865737,5.59664168,103610.0,103600.0,0.22400658]
[1750454866621,5.134444,103610.0,103600.0,0.22400658]
[1750454866892,5.59664168,103610.0,103600.0,0.22400658]
[1750454867336,5.60629269,103610.0,103600.0,0.22400658]
[1750454867549,5.6062926,103610.0,103600.0,0.22400658]
[1750454867779,5.59664168,103610.0,103600.0,0.22400658]
[1750454868639,5.60629269,103610.0,103600.0,0.22400658]
[1750454868873,5.6062926,103610.0,103600.0,0.22400658]
[1750454869057,5.60629251,103610.0,103600.0,0.22400658]
[1750454871054,5.61594362,103610.0,103600.0,0.22400658]
[1750454872337,5.58584362,103610.0,103600.0,0.22400658]
[1750454872760,5.58584352,103610.0,103600.0,0.22400658]
[1750454874030,5.57619251,103610.0,103600.0,0.22400658]
[1750454874645,5.58584343,103610.0,103600.0,0.22400658]
[1750454874854,5.59549444,103610.0,103600.0,0.22400658]
[1750454875289,5.58584343,103610.0,103600.0,0.22400658]
[1750454875491,5.55314343,103610.0,103600.0,0.22400658]
[1750454877929,5.54349251,103610.0,103600.0,0.25540658]
[1750454879267,5.54349251,103610.0,103600.0,0.22400658]
[1750454880130,5.35971578,103610.0,103600.0,0.22400658]
[1750454880516,5.36936651,103610.0,103600.0,0.22400658]
[1750454883623,5.36936651,103610.0,103600.0,0.25600658]
[1750454886336,5.37901743,103610.0,103600.0,0.25600658]
[1750454887010,5.36936651,103610.0,103600.0,0.25600658]
[1750454888390,4.90716883,103610.0,103600.0,0.25600658]
[1750454888648,5.36936651,103610.0,103600.0,0.25600658]
[1750454891050,5.37901752,103610.0,103600.0,0.25600658]
[1750454891514,6.45162632,103610.0,103600.0,0.002]
[1750454891745,0.019308,103580.0,103570.0,0.20276113]
[1750454891964,0.00965549,103560.0,103550.0,0.1931434]
[1750454892183,0.97267429,103560.0,103550.0,0.22211368]
[1750454892413,0.97267429,103560.0,103550.0,0.22225508]
[1750454892638,6.10797615,103560.0,103550.0,0.0001414]
[1750454892859,6.94378361,103560.0,103550.0,0.0001414]
[1750454893278,6.97279761,103560.0,103550.0,0.0001414]
[1750454894140,6.97479761,103560.0,103550.0,0.0001414]
[1750454894347,6.97279761,103560.0,103550.0,0.0001414]
[1750454894772,6.97679761,103560.0,103550.0,0.0001414]
[1750454894986,6.51667553,103560.0,103550.0,0.0001414]
[1750454895410,5.31027244,103560.0,103550.0,0.0001414]
[1750454895623,6.4359134,103560.0,103550.0,0.0001414]
[1750454897300,5.51144244,103560.0,103550.0,0.0001414]
[1750454897504,6.4359134,103560.0,103550.0,0.0001414]
[1750454897928,6.4359134,103560.0,103550.0,0.1932848]
[1750454898138,6.4359134,103560.0,103550.0,0.0001414]
[1750454901194,6.4359134,103560.0,103550.0,0.1932848]
[1750454902274,0.46823548,103560.0,103550.0,0.25525517]
[1750454902528,0.006,103560.0,103550.0,0.28706517]
[1750454902954,0.006,103560.0,103550.0,0.84457958]
[1750454903165,0.004,103560.0,103550.0,0.84457958]
[1750454903385,0.46223548,103590.0,103550.0,0.87358058]
[1750454903599,4.875874,103590.0,103580.0,0.28685946]
[1750454904277,4.875874,103590.0,103580.0,0.38213839]
[1750454904485,4.875874,103600.0,103590.0,0.253238]
[1750454904693,4.875874,103600.0,103590.0,0.284538]
[1750454904897,0.46223548,103600.0,103590.0,0.284538]
[1750454905987,0.25197265,103610.0,103600.0,0.22200658]
[1750454905988,0.03139016,103610.0,103600.0,0.22200658]
[1750454906200,5.58051084,103610.0,103600.0,0.22200658]
[1750454906430,5.59016214,103610.0,103600.0,0.21235473]
[1750454906633,5.59016214,103610.0,103600.0,0.22200668]
[1750454907049,5.59016204,103610.0,103600.0,0.23165853]
[1750454907255,5.60181352,103610.0,103600.0,0.22200668]
[1750454907471,5.59216204,103610.0,103600.0,0.22200668]
[1750454907712,5.59316204,103610.0,103600.0,0.22200668]
[1750454907915,5.58351075,103610.0,103600.0,0.23165853]
[1750454908134,5.59316204,103610.0,103600.0,0.23165853]
[1750454908354,5.60281343,103610.0,103600.0,0.23165853]
[1750454908779,5.58351075,103610.0,103600.0,0.23165853]
[1750454909251,5.55212059,103610.0,103600.0,0.23165853]
[1750454909482,5.34327849,103610.0,103600.0,0.23165853]
[1750454909698,5.35292922,103610.0,103600.0,0.23165853]
[1750454910132,5.36258042,103610.0,103600.0,0.23165853]
[1750454910400,5.38188328,103610.0,103600.0,0.22200668]
[1750454910599,5.57491484,103610.0,103600.0,0.2027026]
[1750454910818,5.56526411,103610.0,103600.0,0.22200696]
[1750454911035,5.57762835,103610.0,103600.0,0.231659]
[1750454911264,5.57762835,103610.0,103600.0,0.22200696]
[1750454911499,5.66530221,103610.0,103580.0,0.22548746]
[1750454911724,1.14649832,103590.0,103580.0,0.20274146]